Cogmind - Beta 12 @@@ ROGUE MODE // 2023.07.04 @ 17:38:04 Player: zapruda Result: Destroyed by H-55 Commando with Gauss Rifle Performance ------------- Evolutions (2) 1000 Regions Visited (6) 1200 Robots Destroyed (89) 445 Value Destroyed (3728) 3728 Prototype IDs (6) 120 Alien Tech Used (0) 0 Bonus (966) 966 TOTAL SCORE: 7459 Bonus ------- High Alert Combat Kills 400 Follower Combat Kills 66 Entered Garrisons 200 Aligned with FarCom 300 Cogmind --------- Core Integrity 0/550 Matter 219/300 Energy 71/100 System Corruption 0% Temperature Cool (0) Movement Walking (400) Ox4 Location -8/Garrison Parts ------- > --- POWER (1) -------- (None) > --- PROPULSION (2) --- Aluminum Leg Aluminum Leg > --- UTILITY (5) ------ Huge Storage Unit Improved Sensor Array Advanced Targeting Computer Improved Utility Shielding Hacking Suite > --- WEAPON (3) ------- Light Assault Rifle Heavy Assault Rifle Katana > --- INVENTORY (25) --- Large Storage Unit Recoil Stabilizer Relay Coupler [NC] (23) Relay Coupler [NC] (22) Relay Coupler [Swarmer] (33) Relay Coupler [Swarmer] (42) Relay Coupler [Swarmer] (42) Relay Coupler [Swarmer] (35) Relay Coupler [Grunt] (28) Relay Coupler [Grunt] (22) Relay Coupler [Sentry] (19) Relay Coupler [Specialist] (18) Relay Coupler [Hunter] (13) Relay Coupler [Hunter] (14) Relay Coupler [Hunter] (19) Beam Rifle AWS/Gauss Peak State ------------ > --- POWER ------------ Light Nuclear Core > --- PROPULSION ------- Armored Treads Armored Treads > --- UTILITY ---------- Improved Heat Sink Huge Storage Unit Improved Terrain Scanner Targeting Computer Improved Utility Shielding > --- WEAPON ----------- Makeshift Shrapnel Gun AWS/Gauss > --- INVENTORY -------- Light Nuclear Core Light Treads Armored Treads Aluminum Leg Hover Unit Hover Unit Hover Unit Improved Heat Sink Large Storage Unit Improved Sensor Array Hacking Suite Medium Laser Medium Laser Beam Rifle Particle Gun Field Laser Assault Rifle Light Assault Rifle Light Assault Rifle Assault Cannon Grenade Launcher Grenade Launcher Rocket Launcher [Rating: 44] Favorites ----------- Power Light Ion Engine Engine Light Ion Engine Power Core Light Nuclear Core Propulsion Light Treads Treads Light Treads Leg Aluminum Leg Wheel Wheel Utility Huge Storage Unit Device Improved Heat Sink Storage Huge Storage Unit Processor Advanced Targeting Computer Hackware Hacking Suite Protection Improved Utility Shielding Weapon Light Assault Rifle Energy Gun Particle Gun Ballistic Gun Light Assault Rifle Ballistic Cannon Assault Cannon Launcher Rocket Launcher Special Weapon Field Lobotomy Kit Slashing Weapon Katana Build | -11 -10 -10 -10 -9 -8 -8 ------- Run | Jun Mat Min Exi Min Mat Gar Slots Evolved 4 | . . . . . 4 . Power . | . . . . . . . Propulsion . | . . . . . . . Utility 3 | . . . . . 3 . Weapon 1 | . . . . . 1 . Parts Attached 72 | . 15 6 5 1 26 19 Power 10 | . 2 1 . . 3 4 Engine 5 | . 2 1 . . 1 1 Core 5 | . . . . . 2 3 Reactor . | . . . . . . . Propulsion 15 | . 4 3 . 1 3 4 Treads 10 | . 4 1 . . 3 2 Leg 2 | . . . . . . 2 Wheel 3 | . . 2 . 1 . . Hover . | . . . . . . . Flight . | . . . . . . . Utility 27 | . 4 1 2 . 16 4 Device 7 | . 1 1 . . 3 2 Storage 8 | . 2 . 2 . 3 1 Processor 5 | . 1 . . . 4 . Hackware 3 | . . . . . 3 . Protection 4 | . . . . . 3 1 Artifact . | . . . . . . . Weapon 20 | . 5 1 3 . 4 7 Energy Gun 6 | . 1 1 1 . 2 1 Energy Cannon . | . . . . . . . Ballistic Gun 9 | . 4 . 1 . 1 3 Ballistic Cannon 1 | . . . . . 1 . Launcher 2 | . . . . . . 2 Special Weapon 1 | . . . 1 . . . Impact Weapon . | . . . . . . . Slashing Weapon 1 | . . . . . . 1 Piercing Weapon . | . . . . . . . Special Melee Weapon . | . . . . . . . Unidentified Prototypes 3 | . . . 3 . . . Parts Lost 32 | . 3 5 . 1 7 16 Power 9 | . 1 1 . . 3 4 Propulsion 7 | . . 2 . 1 . 4 Utility 5 | . . 1 . . 1 3 Weapon 11 | . 2 1 . . 3 5 Highest Loss Streak 5 | . 2 2 . 1 5 4 To Critical Strikes . | . . . . . . . Average Slot Usage (%) 91 | . 93 90 97 82 90 91 Engine 9 | . 12 13 14 14 2 . Core 2 | . . . . . 5 7 Treads 13 | . 23 11 . . 9 17 Wheel 9 | . . 10 28 25 7 . Device 11 | . 9 13 14 14 11 8 Storage 12 | . 14 14 14 14 9 9 Processor 3 | . 2 . . . 11 9 Hackware 3 | . . . . . 5 14 Energy Gun 6 | . 4 11 11 . 5 2 Ballistic Gun 13 | . 20 14 13 14 12 4 Launcher 1 | . . . . . . 6 Slashing Weapon 1 | . . . . . . 7 Naked Turns . | . . . . . . . Heaviest Build 101 | 11 89 90 94 94 101 95 Greatest Support 40 | 20 40 40 26 26 40 40 Greatest Overweight (x) 33 | . 26 8 3 9 33 4 Average Overweight (x) 2 | . 1 4 2 4 2 . Largest Inventory Capacity 25 | . 25 25 25 25 25 25 Average Capacity 23 | . 23 25 24 25 19 21 Most Carried 25 | . 14 24 25 25 25 25 Average Carried 17 | . 10 18 23 24 17 16 Final Capacity 25 | 8 25 25 25 25 15 25 Final Carried 25 | 6 13 24 25 24 12 18 Class Distribution -------------------- 69% | Mutant 11% | Scavenger-Mutant 7% | Hacker-Mutant 7% | Skirmisher Dominant Class ---------------- Mutant | -10/Materials Mutant | -10/Mines Mutant | -10/Exiles Mutant | -9/Mines Skirmisher | -8/Materials Scavenger-Mutant | -8/Garrison Resources | -11 -10 -10 -10 -9 -8 -8 ----------- Run | Jun Mat Min Exi Min Mat Gar Matter Collected 1612 | 200 311 139 . 51 521 390 Remotely . | . . . . . . . Salvage Created 3006 | . 488 329 . 41 1599 549 Parts 175 | . 39 16 . 5 88 27 Haulers Intercepted 3 | . 2 . . . 1 . Recyclers Shooed 2 | . 1 1 . . . . Parts Field Recycled . | . . . . . . . Retrieved Matter . | . . . . . . . Parts Self-Destructed . | . . . . . . . Prevented . | . . . . . . . Kills | -11 -10 -10 -10 -9 -8 -8 ------- Run | Jun Mat Min Exi Min Mat Gar Combat Hostiles Destroyed 69 | . 11 5 . 3 30 20 Melee 8 | . . . . . . 8 Guns 48 | . 11 5 . 3 28 1 Cannons 4 | . . . . . 2 2 AOE 9 | . . . . . . 9 Classes Destroyed 13 | . 6 3 . . 3 1 Worker 4 | . 1 . . . 3 . Builder 3 | . . 1 . . 2 . Tunneler 1 | . . 1 . . . . Hauler 3 | . 2 . . . 1 . Recycler 2 | . . 2 . . . . Operator 2 | . 1 . . . 1 . Watcher 5 | . 2 . . . 3 . Swarmer 18 | . 6 3 . 3 . 6 Grunt 35 | . 5 2 . . 19 9 Brawler 2 | . . . . . 1 1 Duelist 2 | . . . . . . 2 Sentry 11 | . . . . . 9 2 Hunter 1 | . . . . . 1 . Best Kill Streak 17 | . 4 3 . 3 17 7 Combat Bots Only 13 | . 3 3 . 3 13 7 Max Kills in Single Turn 2 | . 1 1 . 1 2 2 Gunslinging . | . . . . . . . Exploded 2 | . . . . . . 2 Melee 1 | . . . . . . 1 Uniques/NPCs Destroyed . | . . . . . . . Combat | -11 -10 -10 -10 -9 -8 -8 -------- Run | Jun Mat Min Exi Min Mat Gar Damage Taken 4381 | . 592 433 . 46 1546 1764 Core 759 | . 122 76 . 9 224 328 Absorbed by Shields . | . . . . . . . Redirected to Shielding 40 | . . . . . 13 27 Regen/Repaired (Parts) 31 | . . . . . 31 . Core Remaining (%) 58 | 100 . . . 17 . . Volleys Fired 201 | . 62 33 . . 69 37 Largest 3 | . 2 2 . . 3 2 Hottest 163 | . 70 85 . . 163 77 Shots Fired 423 | . 109 65 . 7 196 46 Gun 377 | . 109 65 . 7 181 15 Cannon 25 | . . . . . 15 10 Launcher 21 | . . . . . . 21 Special . | . . . . . . . Kinetic 308 | . 107 33 . 7 136 25 Thermal 94 | . 2 32 . . 60 . Explosive 21 | . . . . . . 21 Electromagnetic . | . . . . . . . Robot Hit Streak 15 | . 6 6 . 1 15 8 Robot Miss Streak 6 | . 3 4 . 2 6 2 Penetration Max . | . . . . . . . Secondary Targets 4 | . 4 . . . . . Max Gunslinging Chain 1 | . 1 . . . . . Autonomous 77 | . . . . 7 70 . Shots Hit Robots 305 | . 68 37 . 3 154 43 Core Hits 169 | . 30 18 . 3 78 40 Critical Kills 3 | . . 1 . . 2 . Critical Parts Destroyed 2 | . 1 . . . 1 . Critical Strikes 12 | . 1 1 . . 9 1 Burn 4 | . . . . . 4 . Destroy 5 | . 1 1 . . 3 . Blast 2 | . . . . . 2 . Sever 1 | . . . . . . 1 Melee Attacks 33 | . . . . . . 33 Impact . | . . . . . . . Slashing 33 | . . . . . . 33 Piercing . | . . . . . . . Sneak Attacks . | . . . . . . . Combat Hostiles . | . . . . . . . Follow-up Attacks . | . . . . . . . Damage Inflicted 6656 | . 786 434 . 117 3630 1689 Guns 4768 | . 748 434 . 107 3383 96 Cannons 337 | . . . . . 242 95 Explosions 1061 | . . . . . . 1061 Melee 437 | . . . . . . 437 Ramming 53 | . 38 . . 10 5 . Kinetic 4074 | . 735 161 . 107 2880 191 Thermal 1031 | . 13 273 . . 745 . Explosive 1061 | . . . . . . 1061 Electromagnetic . | . . . . . . . Impact . | . . . . . . . Slashing 437 | . . . . . . 437 Piercing . | . . . . . . . Highest Corruption . | . . . . . . . Average Corruption . | . . . . . . . Corruption Purged . | . . . . . . . Corruption Blocked . | . . . . . . . Overload Shots . | . . . . . . . Overflow Damage 123 | . . . . . 21 102 Projectiles 21 | . . . . . 21 . Explosions 91 | . . . . . . 91 Melee 11 | . . . . . . 11 Knockbacks 4 | . . . . . 4 . Impact . | . . . . . . . Kinetic 4 | . . . . . 4 . Secondary . | . . . . . . . Self-Inflicted Damage 278 | . . . . 4 . 274 Shots 7 | . . . . . . 7 Rammed 8 | . 5 . . 2 1 . Targets Rammed 8 | . 5 . . 2 1 . Kicked . | . . . . . . . Crushed . | . . . . . . . Highest Temperature 427 | . 20 95 . . 427 16 Average Temperature 124 | . 4 25 . . 179 7 Received Heat Transfer 1524 | . 228 126 . . 729 441 Effects 7 | . . . . . 7 . Shutdowns 1 | . . . . . 1 . Energy Bleed 2 | . . . . . 2 . Interference 2 | . . . . . 2 . Matter Decay 1 | . . . . . 1 . Short Circuit 1 | . . . . . 1 . Siege Activations . | . . . . . . . Robots Corrupted . | . . . . . . . Combat Hostiles . | . . . . . . . Parts Fried . | . . . . . . . Impact Corruptions . | . . . . . . . Robots Melted . | . . . . . . . Combat Hostiles . | . . . . . . . Parts Melted 5 | . . 1 . . 4 . Heat Transferred 2775 | . 37 703 . . 2035 . Parts Sabotaged . | . . . . . . . Parts Stolen . | . . . . . . . Parts Stripped . | . . . . . . . Power Chain Reactions . | . . . . . . . Missiles Intercepted . | . . . . . . . Alert | -11 -10 -10 -10 -9 -8 -8 ------- Run | Jun Mat Min Exi Min Mat Gar Peak Influence 1322 | . 194 162 . 65 700 1322 Initial 457 | . . . . . . 457 Average 303 | . 29 33 . 42 351 967 Maximum Alert Level 4 | . . . . . 3 4 Low Security (%) 67 | . 100 100 . 100 28 . Level 1 1 | . . . . . 18 . Level 2 10 | . . . . . 51 19 Level 3 12 | . . . . . 2 47 Level 4 8 | . . . . . . 33 Level 5 . | . . . . . . . High Security . | . . . . . . . Max Security . | . . . . . . . Squads Dispatched 9 | . 1 . . 1 7 . Investigation 3 | . 1 . . . 2 . Extermination . | . . . . . . . Reinforcement 2 | . . . . . 2 . Assault 1 | . . . . 1 . . Garrison 3 | . . . . . 3 . Intercept . | . . . . . . . Searches Triggered . | . . . . . . . Construction Impeded . | . . . . . . . Haulers Reinforced . | . . . . . . . Active Scanning Responses . | . . . . . . . Cargo Convoy Interrupts . | . . . . . . . Stealth | -11 -10 -10 -10 -9 -8 -8 --------- Run | Jun Mat Min Exi Min Mat Gar Distress Signals 6 | . 2 . . . 4 . Communications Jammed . | . . . . . . . Distress Signals . | . . . . . . . Times Spotted 95 | . 21 7 . 2 38 27 Peak Tracking Total 6 | . 3 2 . 2 6 5 Tactical Retreats 2 | . 1 . . . . 1 Traps | -11 -10 -10 -10 -9 -8 -8 ------- Run | Jun Mat Min Exi Min Mat Gar Traps Triggered 7 | . 4 1 . . 1 1 Indirectly . | . . . . . . . Trap Hack Attempts . | . . . . . . . Triggered . | . . . . . . . Disarmed . | . . . . . . . Reprogrammed . | . . . . . . . Reused . | . . . . . . . Traps Extracted . | . . . . . . . Installed . | . . . . . . . Triggered . | . . . . . . . Machines | -11 -10 -10 -10 -9 -8 -8 ---------- Run | Jun Mat Min Exi Min Mat Gar Machines Disabled 12 | . . 2 . . 4 6 Max in Single Turn 2 | . . 1 . . 1 2 Garrison Relay 4 | . . . . . . 4 Phase Generator 1 | . . . . . . 1 Machines Repaired . | . . . . . . . Machines Sabotaged . | . . . . . . . Overloaded Fab Kills . | . . . . . . . Hacking | -11 -10 -10 -10 -9 -8 -8 --------- Run | Jun Mat Min Exi Min Mat Gar Machines Accessed 14 | . 4 1 4 . 3 2 Terminals 6 | . 3 . . . 1 2 Fabricators . | . . . . . . . Repair Stations 2 | . 1 . . . 1 . Recycling Units . | . . . . . . . Scanalyzers . | . . . . . . . Garrison Access 1 | . . . . . 1 . Total Hacks 68 | . 6 1 49 . 10 2 Successful 57 | . . 1 49 . 5 2 Failed 11 | . 6 . . . 5 . Catastrophic 3 | . 2 . . . 1 . Database Lockouts . | . . . . . . . Manual 6 | . . . 2 . 4 . Terminals 12 | . 5 . . . 5 2 Fabricators . | . . . . . . . Repair Stations 3 | . 1 . . . 2 . Recycling Units . | . . . . . . . Scanalyzers . | . . . . . . . Garrison Access 3 | . . . . . 3 . Terminal Hacks 53 | . . 1 49 . 1 2 Record 49 | . . . 49 . . . Prototype ID Bank 1 | . . . . . 1 . Open Door 1 | . . 1 . . . . Emergency Access Points 1 | . . . . . . 1 Garrison Registry 1 | . . . . . . 1 Fabricator Hacks . | . . . . . . . Repair Station Hacks 2 | . . . . . 2 . Scan Component 1 | . . . . . 1 . Repair 1 | . . . . . 1 . Recycling Unit Hacks . | . . . . . . . Scanalyzer . | . . . . . . . Garrison Access Hacks 2 | . . . . . 2 . Unlock Access 1 | . . . . . 1 . Coupler Status 1 | . . . . . 1 . Unauthorized Hacks . | . . . . . . . Terminals . | . . . . . . . Fabricators . | . . . . . . . Repair Stations . | . . . . . . . Recycling Units . | . . . . . . . Scanalyzers . | . . . . . . . Garrison Access . | . . . . . . . Data Cores Recovered . | . . . . . . . Used . | . . . . . . . Hacking Detections 7 | . 3 . . . 3 1 Full Trace Events 3 | . 1 . . . 2 . Feedback Events . | . . . . . . . Feedback Blocked . | . . . . . . . Robot Schematics Acquired . | . . . . . . . Robots Built . | . . . . . . . Authchips . | . . . . . . . Time . | . . . . . . . Total Robot Build Rating . | . . . . . . . Part Schematics Acquired . | . . . . . . . Parts Built . | . . . . . . . Authchips . | . . . . . . . Time . | . . . . . . . Total Part Build Rating . | . . . . . . . Parts Repaired 1 | . . . . . 1 . Time 38 | . . . . . 38 . Parts Recycled . | . . . . . . . Recycled Matter . | . . . . . . . Retrieved Matter . | . . . . . . . Retrieved Components . | . . . . . . . Parts Scanalyzed . | . . . . . . . Part Schematics Acquired . | . . . . . . . Parts Damaged . | . . . . . . . Bothacking | -11 -10 -10 -10 -9 -8 -8 ------------ Run | Jun Mat Min Exi Min Mat Gar Used RIF Installer . | . . . . . . . Robots Hacked . | . . . . . . . Non-combat . | . . . . . . . Combat . | . . . . . . . Robot Hacks Applied . | . . . . . . . Relay Couplers Released 13 | . . . . . . 13 Machine Destruction 13 | . . . . . . 13 Fabnet Peak Effective % . | . . . . . . . Robots Rewired . | . . . . . . . Allies Hacked . | . . . . . . . Hacks Repelled . | . . . . . . . Allies | -11 -10 -10 -10 -9 -8 -8 -------- Run | Jun Mat Min Exi Min Mat Gar Total Allies 2 | . . 1 . 1 . . Largest Group 1 | . . 1 . 1 1 . Highest-Rated Group 31 | . . 31 . 31 31 . Highest-Rated Ally 31 | . . 31 . 31 31 . Total Orders . | . . . . . . . Ally Attacks 19 | . . 3 . . 16 . Total Damage 250 | . . 61 . . 189 . Kills 2 | . . 2 . . . . Allies Corrupted . | . . . . . . . Allies Melted . | . . . . . . . Intel | -11 -10 -10 -10 -9 -8 -8 ------- Run | Jun Mat Min Exi Min Mat Gar Robot Analysis Total . | . . . . . . . Derelict Logs Recovered 3 | . . 2 . 1 . . Drone Launches . | . . . . . . . Drone Recoveries . | . . . . . . . Exploration | -11 -10 -10 -10 -9 -8 -8 ------------- Run | Jun Mat Min Exi Min Mat Gar Turns Passed 8171 | . 2036 1815 1210 606 741 1763 Spaces Moved 3462 | 1 615 713 870 404 252 607 Core 5 | . 4 . . . 1 . Treads 1428 | . 482 222 . . 117 607 Legs 130 | 1 129 . . . . . Wheels 1899 | . . 491 870 404 134 . Hover . | . . . . . . . Flight . | . . . . . . . Fastest Speed 90 | 120 120 135 90 135 140 165 Average Speed 207 | 120 295 238 134 149 168 243 Slowest Speed 1700 | 120 1350 480 135 215 1700 490 Overloaded Moves . | . . . . . . . Propulsion Burnouts . | . . . . . . . Robots Hopped . | . . . . . . . Cave-ins Triggered . | . . . . . . . Exploration Rate (%) 70 | 1 82 99 94 92 33 90 Regions Visited 6 Branch Regions 3 Pre-discovered Areas 2 | . . . 1 1 . . Known Exits Taken 2 | . 1 . . . 1 . Unknown Exits Taken 4 | 1 . 1 1 1 . . Scrap Searched 3 | . . 1 . 2 . . Spaces Dug . | . . . . . . . Terrain Destroyed 147 | . . . . 6 23 118 Melee . | . . . . . . . Projectile 29 | . . . . 6 23 . AOE 118 | . . . . . . 118 Terrain Rammed . | . . . . . . . Walls Destroyed . | . . . . . . . Machines Disabled . | . . . . . . . Actions | -11 -10 -10 -10 -9 -8 -8 --------- Run | Jun Mat Min Exi Min Mat Gar Total 4067 | . 721 767 907 406 464 802 Wait 156 | . 1 . 1 . 77 77 Move 3457 | . 614 712 869 403 252 607 Hop . | . . . . . . . Pick Up 103 | . 20 16 22 . 20 25 Fast Attach 2 | . 1 . 1 . . . Attach 50 | . 10 5 2 1 15 17 Detach 1 | . . . 1 . . . Swap 20 | . 4 1 2 . 11 2 Drop 28 | . 4 . 3 . 19 2 Fire 201 | . 62 33 . . 69 37 Melee 33 | . . . . . . 33 Ram 2 | . . . . 2 . . Kick . | . . . . . . . Crush 6 | . 5 . . . 1 . Escape Stasis 2 | . . . . . . 2 Rewire 6 | . . . 6 . . . Trap . | . . . . . . . Miscellaneous . | . . . . . . . Route ------- -11/Junkyard -10/Materials (discovered 3 exits: [*Mat] / *Min x2) -10/Mines (discovered 3 exits: [*Mat x2] / *Exi) -10/Exiles (discovered 2 exits: [*Min x2]) -9/Mines -8/Materials (discovered 3 exits: *Fac x2 / Gar) -8/Garrison (discovered 3 exits: [*Mat x3]) History --------- Turn | Location | Event 1 | -11/Junkyard | Discovered new exit (range 0) 1 | -11/Junkyard | Entered Materials 62 | -10/Materials | Discovered new exit (range 16) 115 | -10/Materials | Discovered new exit (range 7) 258 | -10/Materials | Discovered new exit (range 8) 286 | -10/Materials | Identified exit to Mines 300 | -10/Materials | Build established: Mutant 2037 | -10/Materials | Entered Mines 2172 | -10/Mines | Core integrity fell below 50% 2291 | -10/Mines | Met a Derelict who couldn't figure out how to use a Trap Extractor 2437 | -10/Mines | Deemed a non-threat by the Exiles lab entrance 2437 | -10/Mines | Discovered new exit (range 5) 2749 | -10/Mines | Learned location of 1 exit from Materials 3066 | -10/Mines | Discovered new exit (range 6) 3112 | -10/Mines | Learned location of 1 exit from Materials 3126 | -10/Mines | Discovered new exit (range 7) 3127 | -10/Mines | Received a Mining Laser from a helpful Derelict 3286 | -10/Mines | Joined a pair of Derelicts in attacking an 0b10 outpost 3338 | -10/Mines | Received a Rocket Launcher from a helpful Derelict 3606 | -10/Mines | A weapon hastily lodged in a ceiling crevice suddenly fell to the ground 3852 | -10/Mines | Entered Exiles 3888 | -10/Exiles | Met 8R-AWN 3911 | -10/Exiles | Met EX-HEX 3982 | -10/Exiles | Met EX-DEC 4015 | -10/Exiles | Visited The Gauntlet 4193 | -10/Exiles | Learned location of Zion (-7) 4275 | -10/Exiles | Discovered new exit (range 14) 4364 | -10/Exiles | Met EX-BIN 4604 | -10/Exiles | Discovered new exit (range 14) 4825 | -10/Exiles | Aligned with FarCom system 4826 | -10/Exiles | Given EX-Vault access code 4858 | -10/Exiles | Opened EX-Vault 4864 | -10/Exiles | Found Prototype Special Weapon 4865 | -10/Exiles | Identified Field Lobotomy Kit 4869 | -10/Exiles | Found Prototype Storage 4870 | -10/Exiles | Identified Superbattery 4878 | -10/Exiles | Found Prototype Ballistic Gun 4880 | -10/Exiles | Identified AWS/Gauss 4961 | -10/Exiles | Warned to stay clear of 0b10 Research branches 5062 | -10/Exiles | Left Exiles lab with AWS/Gauss 5062 | -10/Exiles | Entered Mines 5064 | -9/Mines | Core integrity fell below 20% 5626 | -9/Mines | Discovered new exit (range 6) 5636 | -9/Mines | Met a Derelict testing a Signal Generator 5668 | -9/Mines | Entered Materials 5668 | -8/Materials | Accompanied by 1 ally 5668 | -8/Materials | Evolved 4 slots: Utility x3, Weapon x1 5669 | -8/Materials | Identified exit to Factory 5830 | -8/Materials | Repaired Imp. Utility Shielding 5939 | -8/Materials | Destroyed 13 combat bots 5965 | -8/Materials | Build established: Skirmisher 6181 | -8/Materials | Garrison activated, responded to threat 6379 | -8/Materials | Lost 5 parts (1p1u3w) 6409 | -8/Materials | Identified exit to Garrison 6409 | -8/Materials | Entered Garrison 6518 | -8/Garrison | Triggered checkpoint 6536 | -8/Garrison | Garrison Relay disabled 6704 | -8/Garrison | Triggered checkpoint 6704 | -8/Garrison | Triggered checkpoint 6740 | -8/Garrison | Triggered checkpoint 6742 | -8/Garrison | Lost 4 parts (1p1n1u1w) 6775 | -8/Garrison | Destroyed 7 combat bots 6782 | -8/Garrison | Triggered checkpoint 6831 | -8/Garrison | Build established: Hacker-Mutant 6892 | -8/Garrison | Discovered new exit (range 15) 6962 | -8/Garrison | Discovered new exit (range 18) 6962 | -8/Garrison | Discovered new exit (range 51) 6962 | -8/Garrison | Discovered new exit (range 92) 7021 | -8/Garrison | Garrison Relay disabled 7321 | -8/Garrison | Build established: Scavenger-Mutant 7431 | -8/Garrison | Phase Generator disabled 7432 | -8/Garrison | Core integrity fell below 50% 7462 | -8/Garrison | Lost 3 parts (1p2w) 7510 | -8/Garrison | Triggered checkpoint 7575 | -8/Garrison | Garrison Relay disabled 7626 | -8/Garrison | Garrison Relay disabled 7958 | -8/Garrison | Triggered checkpoint 8151 | -8/Garrison | Core integrity fell below 20% 8172 | -8/Garrison | Destroyed by H-55 Commando with Gauss Rifle Last Messages --------------- 07964_ Lgt. Nuclear Core destroyed. 07966_ S-10 Pest destroyed. 07973_ Acquired 13 matter. 07980_ Acquired 16 matter. 07981_ Adv. Heat Sink destroyed. 07995_ S-10 Pest destroyed. 08000_ Acquired Lgt. Assault Rifle. 08001_ Acquired 14 matter. 08008_ Acquired Lgt. Ion Engine. 08138_ Y-45 Defender springs to life. 08148_ Slug penetrates Reinforced Barrier. 08150_ Arm. Treads destroyed. 08151_ Slug penetrates Machine. 08151_ Machine disabled. 08153_ Slug penetrates Wall. 08154_ Penetrated by Slug. 08159_ Y-45 Defender destroyed. 08160_ Lgt. Ion Engine destroyed. 08166_ Lgt. Treads destroyed. 08167_ Lgt. Assault Rifle destroyed. Map ----- +----------------------------------------------------+ | | | | | | | | | | | | | ??????????????????????????????????????????? | | ??????????????????????????????????????????? | | ??????????????????????????????????????????? | | ??????????????????????????????????????????? | | ??????????????????????????????????????????? | | ??????????????????????????????????????????? | | ??????????????????????????????????????????? | | ??????????????????????????????????????????? | | ??????????????????????????????????????????? | | ?????????????????################?????????? | | ?????????????????# #?????????? | | ?????????????????# < #?????????? | | ?????????????????# #?????????? | | ?????????????????# ############?????????? | | ?????????????????# #????????????????????? | | ?????????????????# #????????????????????? | | ?????????????????# #??############??????? | | ?????????????????# #??#""""""""""#??????? | | ?????????????????# #?##![!![]!"""#??????? | | ?????????????????# #?# @%hx ""#??????? | | #####????????????# ### ####### !"#??????? | | !!!!######???????# Y ="#??????? | | [ #???????# ^ ^ !"#??????? | | #???????# ### ####### !"#??????? | | !!!!###= ###?????# #?# ""#??????? | | # ##### #?????# #?##"![!]!="""#??????? | | # #?????# #??#""""""""""#??????? | | # ##### =#?????# #??############??????? | | # #???# ###?????# #????????????????????? | | # #???# #???????# #????????????????????? | | # #???# #???????# #????????????????????? | | # ##### ######### #????????????????????? | | ^^ ######???????????????? | | ^^ #???????????????? | | ^^ #???????????????? | | # ###################### #???????????????? | | # #????????????????????# ###?????????????? | | # #??????????????????### #"#?????????????? | | #??????????????????# " "#?????????????? | | # #??????????????????# " "#?????????????? | | # #??????????????????# " "#?????????????? | | #??????????????????### #"#?????????????? | | # #????????????????????# ###?????????????? | | # #????????????????????# #???????????????? | +----------------------------------------------------+ Best States ------------- Heat Dissipation 50 Energy Generation 14 Energy Capacity 250 Matter Stores 300 Matter Capacity 300 Sight Range 20 Robot Scan Range 15 Terrain Scan Range 16 Terrain Scan Density 10 Utility Shielding 66 Evasion (%) 55 Targeting Accuracy 8 Recoil Reduction 2 Offensive Hacking 30 Item Schematics ----------------- None Robot Schematics ------------------ None Fabricated ------------ Nothing Alien Tech Used ----------------- None Achievements -------------- None Challenges ------------ None Game ------ Seed EfficiencySmallShotgun Manual? 0 Play Time 00:39:45 Cumulative 77.9 hours Start 2023.07.04 @ 17:00:47 End 2023.07.04 @ 17:38:04 Sessions 1 Manual Loads 0 Difficulty Rogue Special Mode None Game No. 116 Rogue 116 Adventurer 0 Explorer 0 Win Type - Total 0 Types 0/0/0/0/0/0/0/0/0 Lore% 29 Gallery% 51 Achievement% 35 Wizard Run 0 Options --------- ASCII 0 Keyboard 0 Movement Mouse Keybinds 0 Fullscreen 2 Font 18/SmallcapsGlow Map View 76x50 Tactical HUD 1 Map Filters NONE Filters NONE Steam 1 RUN: 6241fbfe-eb7f-4fce-8532-e4b08f7c65bf